[Event "*** Titled Tuesday Blitz"]
[Site "Chess.com"]
[Date "2020.05.12"]
[Round "6"]
[White "GMsKoRPioN"]
[Black "Borsuk_Konstantin"]
[Result "0-1"]
[WhiteElo "2458"]
[BlackElo "2646"]
[TimeControl "180+1"]
[EndTime "11:09:03 PDT"]
[Termination "Borsuk_Konstantin won by resignation"]

1. d4 {[%clk 0:03:00]} 1... Nf6 {[%clk 0:02:59.6]} 2. c4 {[%clk 0:02:59.7]} 2...
e6 {[%clk 0:03:00]} 3. Nc3 {[%clk 0:02:59.5]} 3... Bb4 {[%clk 0:03:00.1]} 4. Qc2
{[%clk 0:02:59.8]} 4... O-O {[%clk 0:02:58.6]} 5. a3 {[%clk 0:02:59.1]} 5...
Bxc3+ {[%clk 0:02:58]} 6. Qxc3 {[%clk 0:03:00]} 6... b6 {[%clk 0:02:58.2]} 7.
Nf3 {[%clk 0:02:59.9]} 7... Bb7 {[%clk 0:02:58.5]} 8. g3 {[%clk 0:03:00.4]} 8...
d6 {[%clk 0:02:54.9]} 9. Bg2 {[%clk 0:03:00.1]} 9... a5 {[%clk 0:02:55.3]} 10.
O-O {[%clk 0:02:59.7]} 10... a4 {[%clk 0:02:55.2]} 11. Bg5 {[%clk 0:02:59.5]}
11... Ra5 {[%clk 0:02:53.7]} 12. Bxf6 {[%clk 0:02:47]} 12... Qxf6 {[%clk
0:02:52.9]} 13. Ne1 {[%clk 0:02:20.6]} 13... Bxg2 {[%clk 0:02:21.4]} 14. Nxg2
{[%clk 0:02:20.1]} 14... Nc6 {[%clk 0:02:17.8]} 15. e3 {[%clk 0:02:17.9]} 15...
e5 {[%clk 0:02:03.2]} 16. d5 {[%clk 0:02:12.9]} 16... Nb8 {[%clk 0:01:59.2]} 17.
f4 {[%clk 0:02:13.4]} 17... Nd7 {[%clk 0:01:59.1]} 18. Rae1 {[%clk 0:01:59.6]}
18... e4 {[%clk 0:01:49.8]} 19. Qxf6 {[%clk 0:01:53.3]} 19... Nxf6 {[%clk
0:01:50.7]} 20. Rc1 {[%clk 0:01:44.3]} 20... h5 {[%clk 0:01:46]} 21. Rfd1 {[%clk
0:01:41.7]} 21... Re8 {[%clk 0:01:41.9]} 22. Kf2 {[%clk 0:01:37.1]} 22... Nd7
{[%clk 0:01:41.1]} 23. Ke2 {[%clk 0:01:29.1]} 23... Nc5 {[%clk 0:01:39.1]} 24.
Rc2 {[%clk 0:01:27.7]} 24... g6 {[%clk 0:01:34.3]} 25. Rc3 {[%clk 0:01:20.3]}
25... Kg7 {[%clk 0:01:33.5]} 26. Ne1 {[%clk 0:01:20.6]} 26... f6 {[%clk
0:01:22.2]} 27. Nc2 {[%clk 0:01:20.3]} 27... Raa8 {[%clk 0:01:18.6]} 28. Nd4
{[%clk 0:01:20.2]} 28... Kf7 {[%clk 0:01:14.5]} 29. Nb5 {[%clk 0:01:19.3]} 29...
Re7 {[%clk 0:01:12.3]} 30. Nd4 {[%clk 0:01:18.7]} 30... Rh8 {[%clk 0:01:11.9]}
31. Nc6 {[%clk 0:01:10]} 31... Ree8 {[%clk 0:01:10.6]} 32. Nd4 {[%clk
0:01:10.4]} 32... f5 {[%clk 0:01:06.9]} 33. h4 {[%clk 0:01:09.8]} 33... Nd3
{[%clk 0:01:04]} 34. Rb1 {[%clk 0:01:01.3]} 34... Ra8 {[%clk 0:01:03.6]} 35. Nc2
{[%clk 0:01:01.5]} 35... Ke7 {[%clk 0:00:55.6]} 36. Ne1 {[%clk 0:00:57.4]} 36...
Nc5 {[%clk 0:00:55.2]} 37. Nc2 {[%clk 0:00:57.3]} 37... Kd7 {[%clk 0:00:55.5]}
38. Nd4 {[%clk 0:00:57.5]} 38... Nd3 {[%clk 0:00:55.1]} 39. Ne6 {[%clk
0:00:52.8]} 39... Ra5 {[%clk 0:00:53.6]} 40. Nd4 {[%clk 0:00:50.6]} 40... Rha8
{[%clk 0:00:51.6]} 41. Nc6 {[%clk 0:00:44]} 41... Rc5 {[%clk 0:00:51.2]} 42. Nb4
{[%clk 0:00:44.3]} 42... Re8 {[%clk 0:00:43.8]} 43. Nxd3 {[%clk 0:00:44]} 43...
exd3+ {[%clk 0:00:43.6]} 44. Kxd3 {[%clk 0:00:44.9]} 44... b5 {[%clk 0:00:42.3]}
45. Ke2 {[%clk 0:00:22.9]} 45... bxc4 {[%clk 0:00:38.9]} 46. Rd1 {[%clk
0:00:23.4]} 46... Rb8 {[%clk 0:00:38]} 47. Rd2 {[%clk 0:00:23.4]} 47... c6
{[%clk 0:00:34.7]} 48. dxc6+ {[%clk 0:00:23.2]} 48... Kxc6 {[%clk 0:00:35.6]}
49. Rcc2 {[%clk 0:00:16.9]} 49... d5 {[%clk 0:00:35.5]} 50. Kf3 {[%clk
0:00:14.6]} 50... Rcb5 {[%clk 0:00:34.7]} 51. Re2 {[%clk 0:00:15]} 51... Rb3
{[%clk 0:00:34.5]} 52. Kf2 {[%clk 0:00:15.6]} 52... Kc5 {[%clk 0:00:34.2]} 53.
Rcd2 {[%clk 0:00:15]} 53... R8b7 {[%clk 0:00:32.4]} 54. Rc2 {[%clk 0:00:15.5]}
54... Rd3 {[%clk 0:00:32]} 55. Kf3 {[%clk 0:00:08.6]} 55... Rbb3 {[%clk
0:00:31.4]} 56. Kf2 {[%clk 0:00:09.2]} 56... Kb5 {[%clk 0:00:27.4]} 57. Rcd2
{[%clk 0:00:06.7]} 57... Kc5 {[%clk 0:00:23.1]} 58. Rc2 {[%clk 0:00:06.8]} 58...
Rd1 {[%clk 0:00:22]} 59. Rcd2 {[%clk 0:00:06.7]} 59... Rd3 {[%clk 0:00:20.3]}
60. Rxd1 {[%clk 0:00:06.4]} 60... Rxd1 {[%clk 0:00:20.3]} 61. Rc2 {[%clk
0:00:07.3]} 61... d4 {[%clk 0:00:19.2]} 62. exd4+ {[%clk 0:00:07.5]} 62... Kxd4
{[%clk 0:00:19.3]} 63. Re2 {[%clk 0:00:08.4]} 63... Rd3 {[%clk 0:00:17.4]} 64.
Kg2 {[%clk 0:00:07.7]} 64... Rb3 {[%clk 0:00:15.4]} 65. Kh3 {[%clk 0:00:07.4]}
65... Kd3 {[%clk 0:00:14.3]} 66. Rf2 {[%clk 0:00:07.4]} 66... Rb6 {[%clk
0:00:13.2]} 67. Rf3+ {[%clk 0:00:06.2]} 67... Kd4 {[%clk 0:00:11.9]} 68. Rf2
{[%clk 0:00:06.8]} 68... Ke3 {[%clk 0:00:10.6]} 69. Rc2 {[%clk 0:00:06.9]} 69...
Kd3 {[%clk 0:00:09.9]} 70. Rc3+ {[%clk 0:00:07.2]} 70... Kd4 {[%clk 0:00:10.5]}
71. Rc2 {[%clk 0:00:07.7]} 71... Re6 {[%clk 0:00:09.7]} 72. Rd2+ {[%clk
0:00:07.8]} 72... Kc5 {[%clk 0:00:10.1]} 73. Kg2 {[%clk 0:00:07.8]} 73... Re3
{[%clk 0:00:09.5]} 74. Kf2 {[%clk 0:00:07.9]} 74... Rb3 {[%clk 0:00:08.8]} 75.
Re2 {[%clk 0:00:07.7]} 75... c3 {[%clk 0:00:08.7]} 76. bxc3 {[%clk 0:00:06.8]}
76... Rxa3 {[%clk 0:00:08.5]} 77. Re6 {[%clk 0:00:06.6]} 77... Rxc3 {[%clk
0:00:08.8]} 78. Rxg6 {[%clk 0:00:07.1]} 78... a3 {[%clk 0:00:09.1]} 79. Ra6
{[%clk 0:00:06.7]} 79... Kb4 {[%clk 0:00:08.8]} 80. Kg2 {[%clk 0:00:04.5]} 80...
Kb3 {[%clk 0:00:08.8]} 81. Rb6+ {[%clk 0:00:04.7]} 81... Kc2 {[%clk 0:00:08.6]}
82. Ra6 {[%clk 0:00:05.3]} 82... Kb2 {[%clk 0:00:07.8]} 83. Ra5 {[%clk
0:00:05.8]} 83... a2 {[%clk 0:00:07.7]} 84. Rb5+ {[%clk 0:00:06.4]} 84... Rb3
{[%clk 0:00:07.1]} 85. Ra5 {[%clk 0:00:05.2]} 85... a1=Q {[%clk 0:00:05.4]} 86.
Rxa1 {[%clk 0:00:05.6]} 86... Kxa1 {[%clk 0:00:06.3]} 87. g4 {[%clk 0:00:06.5]}
87... hxg4 {[%clk 0:00:05.8]} 88. h5 {[%clk 0:00:06.6]} 88... Rh3 {[%clk
0:00:06.3]} 89. h6 {[%clk 0:00:07.2]} 89... Kb2 {[%clk 0:00:06.9]} 90. h7 {[%clk
0:00:07.6]} 90... Kc3 {[%clk 0:00:07.1]} 91. h8=Q+ {[%clk 0:00:07.2]} 91... Rxh8
{[%clk 0:00:07.6]} 92. Kf2 {[%clk 0:00:08]} 92... Rh3 {[%clk 0:00:07.4]} 93. Kg2
{[%clk 0:00:08.3]} 93... Kd3 {[%clk 0:00:07.8]} 0-1

[Event "*** Titled Tuesday Blitz"]
[Site "Chess.com"]
[Date "2020.05.12"]
[Round "7"]
[White "Rodchenkov_Vitalij"]
[Black "Boninknights"]
[Result "0-1"]
[WhiteElo "2421"]
[BlackElo "2260"]
[TimeControl "180+1"]
[EndTime "11:10:47 PDT"]
[Termination "Boninknights won by resignation"]

1. d4 {[%clk 0:03:00.9]} 1... Nf6 {[%clk 0:02:59]} 2. c4 {[%clk 0:03:01]} 2...
e6 {[%clk 0:02:58.6]} 3. g3 {[%clk 0:03:00.2]} 3... c5 {[%clk 0:02:56.7]} 4. d5
{[%clk 0:02:59.1]} 4... exd5 {[%clk 0:02:55.6]} 5. cxd5 {[%clk 0:02:59.6]} 5...
d6 {[%clk 0:02:55.2]} 6. Nc3 {[%clk 0:02:57.6]} 6... g6 {[%clk 0:02:54.4]} 7.
Bg2 {[%clk 0:02:56.4]} 7... Bg7 {[%clk 0:02:53.2]} 8. Nf3 {[%clk 0:02:57.1]}
8... O-O {[%clk 0:02:52.2]} 9. O-O {[%clk 0:02:57.7]} 9... Re8 {[%clk 0:02:51]}
10. Bf4 {[%clk 0:02:56]} 10... Na6 {[%clk 0:02:47.1]} 11. Re1 {[%clk 0:02:50]}
11... Ne4 {[%clk 0:02:44.1]} 12. Nxe4 {[%clk 0:02:41.4]} 12... Rxe4 {[%clk
0:02:43.2]} 13. Nd2 {[%clk 0:02:41.2]} 13... Rxf4 {[%clk 0:02:42.4]} 14. g4
{[%clk 0:02:40.3]} 14... Rxg4 {[%clk 0:02:35.3]} 0-1

[Event "*** Titled Tuesday Blitz"]
[Site "Chess.com"]
[Date "2020.05.12"]
[Round "7"]
[White "archess2"]
[Black "harkerchess"]
[Result "1-0"]
[WhiteElo "2318"]
[BlackElo "1993"]
[TimeControl "180+1"]
[EndTime "11:11:40 PDT"]
[Termination "archess2 won by resignation"]

1. d4 {[%clk 0:03:00.9]} 1... d5 {[%clk 0:02:55.5]} 2. c4 {[%clk 0:03:01.1]}
2... c6 {[%clk 0:02:55.4]} 3. cxd5 {[%clk 0:03:00.3]} 3... cxd5 {[%clk
0:02:55.5]} 4. Nc3 {[%clk 0:03:00.6]} 4... Nf6 {[%clk 0:02:55.2]} 5. Nf3 {[%clk
0:03:00.9]} 5... a6 {[%clk 0:02:54.1]} 6. Bf4 {[%clk 0:03:00.9]} 6... e6 {[%clk
0:02:54]} 7. e3 {[%clk 0:03:00.7]} 7... Be7 {[%clk 0:02:53.3]} 8. Bd3 {[%clk
0:03:00.2]} 8... O-O {[%clk 0:02:50.2]} 9. O-O {[%clk 0:02:59.5]} 9... Nc6
{[%clk 0:02:49.9]} 10. Rc1 {[%clk 0:02:56.9]} 10... Bd7 {[%clk 0:02:48.3]} 11.
Ne5 {[%clk 0:02:56.9]} 11... Rc8 {[%clk 0:02:43]} 12. Qf3 {[%clk 0:02:54.8]}
12... Be8 {[%clk 0:02:37]} 13. Qh3 {[%clk 0:02:51.7]} 13... Bd7 {[%clk
0:02:09.8]} 14. Nxd5 {[%clk 0:02:45.1]} 14... exd5 {[%clk 0:02:06.6]} 15. Nxd7
{[%clk 0:02:44.5]} 15... Qxd7 {[%clk 0:02:03.8]} 16. Bxh7+ {[%clk 0:02:43.5]}
16... Kh8 {[%clk 0:01:42.8]} 17. Bf5+ {[%clk 0:02:43.3]} 1-0

[Event "*** Titled Tuesday Blitz"]
[Site "Chess.com"]
[Date "2020.05.12"]
[Round "7"]
[White "DrVitman"]
[Black "temus_galaktionov"]
[Result "1/2-1/2"]
[WhiteElo "2562"]
[BlackElo "2736"]
[TimeControl "180+1"]
[EndTime "11:11:51 PDT"]
[Termination "Game drawn by repetition"]

1. e4 {[%clk 0:03:00.9]} 1... c6 {[%clk 0:02:57.2]} 2. Nf3 {[%clk 0:03:00.3]}
2... g6 {[%clk 0:02:58.1]} 3. Nc3 {[%clk 0:02:54.9]} 3... Bg7 {[%clk 0:02:59]}
4. d4 {[%clk 0:02:54.3]} 4... d6 {[%clk 0:02:59.9]} 5. h3 {[%clk 0:02:54]} 5...
Nd7 {[%clk 0:03:00.4]} 6. Be3 {[%clk 0:02:54]} 6... e5 {[%clk 0:03:00.8]} 7.
dxe5 {[%clk 0:02:50.3]} 7... dxe5 {[%clk 0:03:01.7]} 8. Bc4 {[%clk 0:02:48.8]}
8... Ngf6 {[%clk 0:03:00.7]} 9. Qd6 {[%clk 0:02:44.8]} 9... Bf8 {[%clk
0:03:00.1]} 10. Qd2 {[%clk 0:02:44.2]} 10... Bg7 {[%clk 0:02:59.9]} 11. O-O-O
{[%clk 0:02:23.6]} 11... Qa5 {[%clk 0:02:55.2]} 12. Qd6 {[%clk 0:01:46.9]} 12...
h6 {[%clk 0:02:54.4]} 13. Bb3 {[%clk 0:01:35.3]} 13... Bf8 {[%clk 0:02:49.1]}
14. Qd3 {[%clk 0:01:33.7]} 14... Bg7 {[%clk 0:02:45]} 15. Qd6 {[%clk 0:01:32]}
15... Bf8 {[%clk 0:02:44.5]} 16. Qd3 {[%clk 0:01:31.9]} 16... Bg7 {[%clk
0:02:43.8]} 17. Qd6 {[%clk 0:01:31.8]} 1/2-1/2

[Event "*** Titled Tuesday Blitz"]
[Site "Chess.com"]
[Date "2020.05.12"]
[Round "7"]
[White "tan275"]
[Black "WeAintSurePal"]
[Result "0-1"]
[WhiteElo "2178"]
[BlackElo "2351"]
[TimeControl "180+1"]
[EndTime "11:12:09 PDT"]
[Termination "WeAintSurePal won by resignation"]

1. d4 {[%clk 0:03:00.9]} 1... d5 {[%clk 0:02:58.4]} 2. c4 {[%clk 0:03:01.1]}
2... e6 {[%clk 0:02:58]} 3. Nf3 {[%clk 0:02:57.8]} 3... Nf6 {[%clk 0:02:55.6]}
4. Nc3 {[%clk 0:02:55.3]} 4... Be7 {[%clk 0:02:53]} 5. Bg5 {[%clk 0:02:54.7]}
5... O-O {[%clk 0:02:52.5]} 6. e3 {[%clk 0:02:52.6]} 6... h6 {[%clk 0:02:52.1]}
7. Bxf6 {[%clk 0:02:52]} 7... Bxf6 {[%clk 0:02:53]} 8. Rc1 {[%clk 0:02:51.4]}
8... c5 {[%clk 0:02:49.1]} 9. dxc5 {[%clk 0:02:41]} 9... Qa5 {[%clk 0:02:36.6]}
10. cxd5 {[%clk 0:02:36.2]} 10... exd5 {[%clk 0:02:37.5]} 11. Qxd5 {[%clk
0:02:02.2]} 11... Nc6 {[%clk 0:02:31.1]} 12. Be2 {[%clk 0:01:48.1]} 12... Be6
{[%clk 0:02:30]} 13. Qd2 {[%clk 0:01:44]} 13... Rfd8 {[%clk 0:02:29.2]} 14. Qc2
{[%clk 0:01:31.5]} 14... Nb4 {[%clk 0:02:28.8]} 15. Qa4 {[%clk 0:01:31.2]} 15...
Bxc3+ {[%clk 0:02:27.5]} 0-1

[Event "*** Titled Tuesday Blitz"]
[Site "Chess.com"]
[Date "2020.05.12"]
[Round "7"]
[White "Bacyanide"]
[Black "Gennady_Kozlov"]
[Result "0-1"]
[WhiteElo "2423"]
[BlackElo "2610"]
[TimeControl "180+1"]
[EndTime "11:12:46 PDT"]
[Termination "Gennady_Kozlov won by resignation"]

1. d4 {[%clk 0:03:00.9]} 1... e6 {[%clk 0:02:59.2]} 2. Nf3 {[%clk 0:03:00.6]}
2... Nf6 {[%clk 0:02:58.4]} 3. Bf4 {[%clk 0:03:00.5]} 3... Be7 {[%clk
0:02:57.6]} 4. e3 {[%clk 0:03:00.2]} 4... b6 {[%clk 0:02:56.9]} 5. h3 {[%clk
0:02:59.7]} 5... Bb7 {[%clk 0:02:57.4]} 6. Bd3 {[%clk 0:02:59.7]} 6... O-O
{[%clk 0:02:57.6]} 7. O-O {[%clk 0:02:58.7]} 7... d6 {[%clk 0:02:56.7]} 8. a4
{[%clk 0:02:58.7]} 8... Nbd7 {[%clk 0:02:56.6]} 9. a5 {[%clk 0:02:59]} 9... bxa5
{[%clk 0:02:56.3]} 10. Nbd2 {[%clk 0:02:49.3]} 10... Nd5 {[%clk 0:02:44.2]} 11.
Bh2 {[%clk 0:02:48.2]} 11... f5 {[%clk 0:02:44.7]} 12. Nc4 {[%clk 0:02:44.4]}
12... Nb4 {[%clk 0:02:32.3]} 13. Nxa5 {[%clk 0:02:44.4]} 13... Bxf3 {[%clk
0:02:30.9]} 14. Qxf3 {[%clk 0:02:41.4]} 14... Nxd3 {[%clk 0:02:30.5]} 15. cxd3
{[%clk 0:02:42.3]} 15... Nb6 {[%clk 0:02:24.8]} 16. Qc6 {[%clk 0:02:27.7]} 16...
Bg5 {[%clk 0:02:03]} 17. f4 {[%clk 0:02:02.6]} 17... Bf6 {[%clk 0:01:57]} 18.
Qc4 {[%clk 0:01:44.5]} 18... Nxc4 {[%clk 0:01:40]} 0-1

[Event "*** Titled Tuesday Blitz"]
[Site "Chess.com"]
[Date "2020.05.12"]
[Round "7"]
[White "LawrenceTrent"]
[Black "KaterynaLagno"]
[Result "0-1"]
[WhiteElo "2530"]
[BlackElo "2692"]
[TimeControl "180+1"]
[EndTime "11:12:55 PDT"]
[Termination "KaterynaLagno won by resignation"]

1. e4 {[%clk 0:02:59.8]} 1... e5 {[%clk 0:03:00.2]} 2. Nf3 {[%clk 0:02:59.3]}
2... Nc6 {[%clk 0:03:00.9]} 3. Bb5 {[%clk 0:02:55.9]} 3... g6 {[%clk 0:03:00.5]}
4. d4 {[%clk 0:02:53.5]} 4... exd4 {[%clk 0:02:59.8]} 5. Bg5 {[%clk 0:02:54]}
5... Be7 {[%clk 0:02:59.1]} 6. h4 {[%clk 0:02:54.2]} 6... a6 {[%clk 0:02:54.7]}
7. Bxc6 {[%clk 0:02:46.5]} 7... dxc6 {[%clk 0:02:55.6]} 8. Bxe7 {[%clk
0:02:46.6]} 8... Qxe7 {[%clk 0:02:51.9]} 9. Qxd4 {[%clk 0:02:46.6]} 9... Nf6
{[%clk 0:02:52.6]} 10. Nbd2 {[%clk 0:02:42.9]} 10... c5 {[%clk 0:02:49]} 11. Qc3
{[%clk 0:02:42.1]} 11... Bg4 {[%clk 0:02:45]} 12. Ne5 {[%clk 0:02:39.5]} 12...
O-O-O {[%clk 0:02:42.9]} 13. f3 {[%clk 0:02:37.5]} 13... Be6 {[%clk 0:02:42.3]}
14. a4 {[%clk 0:02:25.3]} 14... Rd4 {[%clk 0:02:39.5]} 15. Rd1 {[%clk
0:01:55.4]} 15... Rhd8 {[%clk 0:02:37.6]} 16. Ke2 {[%clk 0:01:49.6]} 16... Nh5
{[%clk 0:02:36]} 17. Kf2 {[%clk 0:01:37.4]} 17... Qd6 {[%clk 0:02:32.3]} 18. Nd3
{[%clk 0:01:19.9]} 18... c4 {[%clk 0:02:25.5]} 19. e5 {[%clk 0:01:14.7]} 19...
Qb6 {[%clk 0:02:24.5]} 20. a5 {[%clk 0:01:14.3]} 20... Qa7 {[%clk 0:02:23.9]}
21. Ne4 {[%clk 0:01:07.1]} 0-1

[Event "*** Titled Tuesday Blitz"]
[Site "Chess.com"]
[Date "2020.05.12"]
[Round "7"]
[White "Hippotaner"]
[Black "davidkalashian"]
[Result "1-0"]
[WhiteElo "2365"]
[BlackElo "2502"]
[TimeControl "180+1"]
[EndTime "11:12:58 PDT"]
[Termination "Hippotaner won by checkmate"]

1. Nf3 {[%clk 0:03:00.9]} 1... Nf6 {[%clk 0:02:58.9]} 2. g3 {[%clk 0:03:01.3]}
2... e6 {[%clk 0:02:59]} 3. Bg2 {[%clk 0:03:02.2]} 3... d5 {[%clk 0:02:59.4]} 4.
O-O {[%clk 0:03:03.1]} 4... c5 {[%clk 0:02:59.5]} 5. d3 {[%clk 0:03:04]} 5...
Nc6 {[%clk 0:02:59.4]} 6. Nbd2 {[%clk 0:03:04.6]} 6... Be7 {[%clk 0:02:57.6]} 7.
e4 {[%clk 0:03:04.9]} 7... Qc7 {[%clk 0:02:53.6]} 8. Re1 {[%clk 0:03:04.2]} 8...
O-O {[%clk 0:02:52.8]} 9. e5 {[%clk 0:03:04]} 9... Nd7 {[%clk 0:02:52.3]} 10.
Qe2 {[%clk 0:03:04.6]} 10... b5 {[%clk 0:02:52.5]} 11. a4 {[%clk 0:03:03.3]}
11... b4 {[%clk 0:02:52.1]} 12. b3 {[%clk 0:03:03.1]} 12... a5 {[%clk
0:02:51.7]} 13. Bb2 {[%clk 0:03:03.3]} 13... Ba6 {[%clk 0:02:51.9]} 14. h4
{[%clk 0:03:01.8]} 14... Rfc8 {[%clk 0:02:51.2]} 15. Nf1 {[%clk 0:02:59.2]}
15... Nb6 {[%clk 0:02:44.2]} 16. Bh3 {[%clk 0:02:55.5]} 16... c4 {[%clk
0:02:41.5]} 17. Ne3 {[%clk 0:02:47.2]} 17... cxd3 {[%clk 0:02:33.9]} 18. cxd3
{[%clk 0:02:47]} 18... Nd7 {[%clk 0:02:34.3]} 19. Rac1 {[%clk 0:02:42.6]} 19...
Qb6 {[%clk 0:02:31.4]} 20. Kg2 {[%clk 0:02:38.5]} 20... Nc5 {[%clk 0:02:28.6]}
21. Rxc5 {[%clk 0:02:31.3]} 21... Bxc5 {[%clk 0:02:27.5]} 22. Ng5 {[%clk
0:02:27.2]} 22... h6 {[%clk 0:02:17.4]} 23. Nxf7 {[%clk 0:02:08]} 23... Kxf7
{[%clk 0:02:08.7]} 24. Qh5+ {[%clk 0:02:07.6]} 24... Kg8 {[%clk 0:01:56.1]} 25.
Bxe6+ {[%clk 0:02:06.9]} 25... Kh8 {[%clk 0:01:56.6]} 26. Nxd5 {[%clk
0:02:05.3]} 26... Qb7 {[%clk 0:01:55.7]} 27. Bxc8 {[%clk 0:02:02.5]} 27... Rxc8
{[%clk 0:01:52.6]} 28. e6 {[%clk 0:02:02.6]} 28... Ne7 {[%clk 0:01:52]} 29.
Qxh6+ {[%clk 0:02:00.8]} 29... Kg8 {[%clk 0:01:47.6]} 30. Qxg7# {[%clk
0:02:00.7]} 1-0

[Event "*** Titled Tuesday Blitz"]
[Site "Chess.com"]
[Date "2020.05.12"]
[Round "7"]
[White "robertofabregas"]
[Black "allvim"]
[Result "0-1"]
[WhiteElo "2089"]
[BlackElo "2268"]
[TimeControl "180+1"]
[EndTime "11:13:03 PDT"]
[Termination "allvim won by resignation"]

1. d4 {[%clk 0:03:00.9]} 1... Nf6 {[%clk 0:02:59.8]} 2. Bf4 {[%clk 0:03:01]}
2... d5 {[%clk 0:02:57.6]} 3. e3 {[%clk 0:03:01.4]} 3... c5 {[%clk 0:02:56.7]}
4. c3 {[%clk 0:03:01.4]} 4... Nc6 {[%clk 0:02:57.1]} 5. Nd2 {[%clk 0:03:01.3]}
5... e6 {[%clk 0:02:52.8]} 6. Ngf3 {[%clk 0:03:01.4]} 6... Bd6 {[%clk
0:02:53.2]} 7. Bg3 {[%clk 0:02:59.4]} 7... O-O {[%clk 0:02:53]} 8. Be2 {[%clk
0:02:55.7]} 8... cxd4 {[%clk 0:02:52.5]} 9. exd4 {[%clk 0:02:55.5]} 9... Re8
{[%clk 0:02:52.5]} 10. O-O {[%clk 0:02:55.2]} 10... e5 {[%clk 0:02:47.5]} 11.
Nxe5 {[%clk 0:02:52.1]} 11... Nxe5 {[%clk 0:02:48.4]} 12. dxe5 {[%clk
0:02:51.1]} 12... Bxe5 {[%clk 0:02:49.3]} 13. Nf3 {[%clk 0:02:42.5]} 13... Bxg3
{[%clk 0:02:43.6]} 14. hxg3 {[%clk 0:02:43.1]} 14... Qb6 {[%clk 0:02:36.6]} 15.
Rb1 {[%clk 0:02:24]} 15... Bd7 {[%clk 0:02:29.3]} 16. Nd4 {[%clk 0:02:20.8]}
16... Re7 {[%clk 0:02:24.5]} 17. Bf3 {[%clk 0:02:19.6]} 17... Rae8 {[%clk
0:02:23.4]} 18. Qd2 {[%clk 0:02:19.8]} 18... Ne4 {[%clk 0:02:18.6]} 19. Qc2
{[%clk 0:02:06.7]} 19... Rc8 {[%clk 0:02:07.6]} 20. Rfe1 {[%clk 0:01:54.5]}
20... Qxd4 {[%clk 0:01:58.3]} 21. Bxe4 {[%clk 0:01:37.9]} 21... dxe4 {[%clk
0:01:50.2]} 22. Rbd1 {[%clk 0:01:37]} 22... Qb6 {[%clk 0:01:47.9]} 0-1

[Event "*** Titled Tuesday Blitz"]
[Site "Chess.com"]
[Date "2020.05.12"]
[Round "7"]
[White "praveenb2002"]
[Black "Karacsonyi_Gellert"]
[Result "1-0"]
[WhiteElo "2715"]
[BlackElo "2486"]
[TimeControl "180+1"]
[EndTime "11:13:09 PDT"]
[Termination "praveenb2002 won by resignation"]

1. e4 {[%clk 0:03:00.9]} 1... c5 {[%clk 0:02:59.8]} 2. Nf3 {[%clk 0:02:59.4]}
2... Nc6 {[%clk 0:03:00.2]} 3. d4 {[%clk 0:02:58]} 3... cxd4 {[%clk 0:03:01.1]}
4. Nxd4 {[%clk 0:02:57.9]} 4... g6 {[%clk 0:03:01.7]} 5. Nc3 {[%clk 0:02:53.5]}
5... Bg7 {[%clk 0:03:01.6]} 6. Be3 {[%clk 0:02:51.5]} 6... Nf6 {[%clk
0:03:01.9]} 7. f3 {[%clk 0:02:49.1]} 7... O-O {[%clk 0:03:01.3]} 8. Bc4 {[%clk
0:02:49.1]} 8... Qb6 {[%clk 0:03:01.6]} 9. Bb3 {[%clk 0:02:44]} 9... Nxe4 {[%clk
0:03:01.2]} 10. Nd5 {[%clk 0:02:44]} 10... Qa5+ {[%clk 0:02:55.4]} 11. c3 {[%clk
0:02:43.9]} 11... Nc5 {[%clk 0:02:53.8]} 12. Nxc6 {[%clk 0:02:41.8]} 12... dxc6
{[%clk 0:02:54.7]} 13. Nxe7+ {[%clk 0:02:42]} 13... Kh8 {[%clk 0:02:54.3]} 14.
Nxc8 {[%clk 0:02:39.5]} 14... Raxc8 {[%clk 0:02:54.5]} 15. O-O {[%clk
0:02:39.5]} 15... Rcd8 {[%clk 0:02:38.2]} 16. Qc2 {[%clk 0:02:37.1]} 16... a6
{[%clk 0:02:36.5]} 17. Bc4 {[%clk 0:02:35.4]} 17... Ne6 {[%clk 0:02:33.2]} 18.
Rae1 {[%clk 0:02:33.4]} 18... b5 {[%clk 0:02:22.5]} 19. Bb3 {[%clk 0:02:29.4]}
19... Qc7 {[%clk 0:02:13]} 20. Qf2 {[%clk 0:02:27.9]} 20... Rde8 {[%clk
0:01:54]} 21. f4 {[%clk 0:02:21.5]} 21... a5 {[%clk 0:01:48]} 22. f5 {[%clk
0:02:19.1]} 22... a4 {[%clk 0:01:17.3]} 23. Bc2 {[%clk 0:02:07.3]} 23... Nd8
{[%clk 0:01:10.8]} 24. f6 {[%clk 0:02:05]} 1-0

[Event "*** Titled Tuesday Blitz"]
[Site "Chess.com"]
[Date "2020.05.12"]
[Round "7"]
[White "atalz0"]
[Black "scabies1"]
[Result "1-0"]
[WhiteElo "2440"]
[BlackElo "2236"]
[TimeControl "180+1"]
[EndTime "11:13:14 PDT"]
[Termination "atalz0 won by resignation"]

1. d4 {[%clk 0:03:00.9]} 1... Nf6 {[%clk 0:02:54.6]} 2. c4 {[%clk 0:03:00.5]}
2... e6 {[%clk 0:02:53]} 3. Nc3 {[%clk 0:03:00.3]} 3... Bb4 {[%clk 0:02:53.5]}
4. Qc2 {[%clk 0:03:00.1]} 4... c5 {[%clk 0:02:53.6]} 5. dxc5 {[%clk 0:02:59.8]}
5... Bxc5 {[%clk 0:02:52.7]} 6. Nf3 {[%clk 0:02:59.6]} 6... O-O {[%clk
0:02:52.3]} 7. Bg5 {[%clk 0:02:59.3]} 7... Be7 {[%clk 0:02:35.6]} 8. Rd1 {[%clk
0:02:58.8]} 8... a6 {[%clk 0:02:31.4]} 9. e4 {[%clk 0:02:58.9]} 9... Nc6 {[%clk
0:02:21.8]} 10. Be2 {[%clk 0:02:57.7]} 10... Qc7 {[%clk 0:02:20.6]} 11. O-O
{[%clk 0:02:49.5]} 11... Ne5 {[%clk 0:02:01.2]} 12. Nxe5 {[%clk 0:01:59.2]}
12... Qxe5 {[%clk 0:02:02.1]} 13. Qd2 {[%clk 0:01:46.3]} 13... d6 {[%clk
0:01:37.2]} 14. Bf4 {[%clk 0:01:43.5]} 14... Qa5 {[%clk 0:01:26]} 15. Nd5 {[%clk
0:01:39.7]} 1-0

[Event "*** Titled Tuesday Blitz"]
[Site "Chess.com"]
[Date "2020.05.12"]
[Round "7"]
[White "GjakanTati"]
[Black "Raja3401"]
[Result "0-1"]
[WhiteElo "2649"]
[BlackElo "2785"]
[TimeControl "180+1"]
[EndTime "11:13:18 PDT"]
[Termination "Raja3401 won on time"]

1. d4 {[%clk 0:03:00.9]} 1... Nf6 {[%clk 0:02:59.8]} 2. c4 {[%clk 0:03:01]} 2...
e6 {[%clk 0:03:00.4]} 3. Nf3 {[%clk 0:03:01]} 3... d5 {[%clk 0:03:00.4]} 4. Nc3
{[%clk 0:02:59.7]} 4... c6 {[%clk 0:02:59.3]} 5. e3 {[%clk 0:02:58.3]} 5... Nbd7
{[%clk 0:02:58.8]} 6. Bd3 {[%clk 0:02:51.1]} 6... dxc4 {[%clk 0:02:57.7]} 7.
Bxc4 {[%clk 0:02:52]} 7... b5 {[%clk 0:02:58.1]} 8. Bb3 {[%clk 0:02:51.7]} 8...
a6 {[%clk 0:02:51.9]} 9. O-O {[%clk 0:02:48.7]} 9... Bb7 {[%clk 0:02:50.1]} 10.
a4 {[%clk 0:02:48]} 10... b4 {[%clk 0:02:44.1]} 11. Ne2 {[%clk 0:02:32.5]} 11...
c5 {[%clk 0:02:39.8]} 12. Ng3 {[%clk 0:02:24.2]} 12... h5 {[%clk 0:02:38.2]} 0-1